[Event "45th FIDE Olympiad 2024"]
[Site "Budapest"]
[Date "2024.09.14"]
[Round "4.17"]
[White "Le, Quang Liem"]
[Black "Abdusattorov, Nodirbek"]
[Result "1/2-1/2"]
[ECO "A33"]
[WhiteElo "2741"]
[BlackElo "2766"]
[Annotator "TA"]
[PlyCount "125"]
[EventDate "2024.09.05"]
[EventType "team-tourn"]
[EventCountry "HUN"]
[SourceTitle "playchess.com"]
[Source "ChessBase"]
[SourceQuality "1"]
[WhiteTeam "Vietnam"]
[BlackTeam "Uzbekistan"]
[WhiteTeamCountry "VIE"]
[BlackTeamCountry "UZB"]
[TimeControl "40/5400+30:1800+30"]

{[%evp 93,125,0,0,0,0,0,0,0,0,0,0,0,0,0,0,0,0,0,0,0,0,0,0,0,0,0,0,0,0,0,0,0,0,0]} 1. c4 {[%emt 0:00:04]} c5 {[%emt 0:00:26]} 2. Nf3 {[%emt 0:00:13]} Nf6 {[%emt 0:00:07]} 3. Nc3 {[%emt 0:01:10]} Nc6 {[%emt 0:00:07]} 4. d4 {[%emt 0:00:59]} cxd4 {[%emt 0:00:06]} 5. Nxd4 {[%emt 0:00:06]} e6 {[%emt 0:00:07]} 6. a3 {[%emt 0:01:59]} d5 {[%emt 0:04:08]} 7. cxd5 {[%emt 0:01:11]} exd5 {[%emt 0:00:03]} 8. Bg5 {[%emt 0:06:05]} Bc5 {[%emt 0:00:08] A33: Symmetrical English: 2 Nf3 Nf6 3 d4 cxd4 4 Nxd4 e6 5 Nc3 Nc6.} 9. e3 {[%emt 0:00:24]} O-O {[%emt 0:02:33]} 10. Be2 {[%emt 0:03:00]} Nxd4 {[%emt 0:00:23]} 11. exd4 {[%emt 0:00:09]} Bb6 {[%emt 0:00:44]} 12. O-O {[%emt 0:01:22]} Qd6 $146 {[%emt 0:00:13]} ({Predecessor:} 12... h6 13. Bh4 g5 14. Bg3 Ne4 15. Nxe4 dxe4 16. d5 Qf6 17. Qb3 Rd8 18. a4 Bc5 {½-½ Fister,B (2148)-Zordick,M (2187) EU-ch 2017 pr05 email}) 13. Bf3 {[%emt 0:03:01]} h6 {[%emt 0:02:29]} 14. Bxf6 {[%emt 0:02:28]} Qxf6 {[%emt 0:00:05]} 15. Nxd5 {[%emt 0:00:17]} Qxd4 {[%emt 0:00:13]} 16. Qe2 {[%emt 0:00:50]} Bd8 {[%emt 0:10:29]} 17. Rfd1 {[%emt 0:01:32]} Qa4 {[%emt 0:05:45]} 18. Rac1 {[%emt 0:16:43]} Be6 {[%emt 0:18:06]} 19. Nc3 {[%emt 0:06:30]} Qb3 {[%emt 0:03:12]} 20. Bd5 {[%emt 0:00:15]} Bxd5 {[%emt 0:00:16]} 21. Nxd5 {[%emt 0:00:06]} Bg5 {[%emt 0:02:05]} 22. Rc3 {[%emt 0:00:18]} Qa4 {[%emt 0:01:15]} 23. Rc4 {[%emt 0:05:50]} Qa5 {[%emt 0:04:30]} 24. h4 {[%emt 0:08:06]} Rae8 {[%emt 0:00:11]} 25. Qd3 {[%emt 0:06:07]} Bd8 {[%emt 0:00:58]} 26. Rb4 {[%emt 0:00:45]} Re6 {[%emt 0:03:45]} 27. g3 {[%emt 0:03:49]} Bb6 {[%emt 0:00:23]} 28. Kg2 {[%emt 0:02:40]} Qc5 {[%emt 0:00:15]} 29. Nxb6 {[%emt 0:02:32]} Rxb6 {[%emt 0:00:08]} 30. Rc4 {[%emt 0:00:12]} Qb5 {[%emt 0:00:45]} 31. b4 {[%emt 0:02:05]} a5 {[%emt 0:00:39]} 32. Qd5 {[%emt 0:02:35]} axb4 {[%emt 0:00:33]} 33. Rxb4 {[%emt 0:01:10]} Qxd5+ {[%emt 0:00:14]} 34. Rxd5 {[%emt 0:00:07]} Ra6 {[%emt 0:00:04]} 35. a4 {[%emt 0:00:22]} Rfa8 {[%emt 0:00:03]} 36. Rdd4 {[%emt 0:00:32]} h5 {[%emt 0:00:27]} 37. Kf3 {[%emt 0:01:03]} Rf6+ {[%emt 0:00:16]} 38. Rf4 {[%emt 0:01:32]} Rxf4+ {[%emt 0:00:05]} 39. Kxf4 {[%emt 0:00:10]} Ra5 {[%emt 0:02:29]} 40. Ke4 {[%emt 0:04:56]} Kh7 {[%emt 0:07:45]} 41. Kd4 {[%emt 0:32:14]} b6 {[%emt 0:31:51]} 42. Kc3 {[%emt 0:06:01]} Rc5+ {[%emt 0:01:49]} 43. Rc4 {[%emt 0:03:39]} Rf5 {[%emt 0:00:32]} 44. Rf4 {[%emt 0:00:47]} Rxf4 {[%emt 0:04:01]} 45. gxf4 {[%emt 0:00:07]} g6 {[%emt 0:00:01]} 46. Kc4 {[%emt 0:00:00]} f6 {[%emt 0:00:00]} 47. Kd5 {[%emt 0:00:00]} (47. Kb5 g5 48. fxg5 fxg5 49. hxg5 $19) 47... Kg7 {[%emt 0:00:00]} 48. Ke4 {[%emt 0:00:00]} Kf7 {[%emt 0:00:00]} 49. Kd5 {[%emt 0:00:00]} Ke7 {[%emt 0:00:00]} 50. Ke4 {[%emt 0:00:00]} (50. Kc6 g5 51. hxg5 fxg5 52. Kxb6 h4 53. fxg5 h3 54. g6 h2 55. g7 Kf7 56. f4 h1=Q (56... h1=R 57. a5 $11) 57. Kc5 Qc1+ (57... Kxg7 58. a5 Kf6 59. Kd6 Qa8 60. Kc5 Qxa5+ 61. Kd4 Kf5 62. Kc4 Kxf4 63. Kb3 Ke3 64. Kc4 Ke4 65. Kb3 Kd3 66. Kb2 Qb4+ 67. Ka2 Kc3 68. Ka1 Qb2#) 58. Kb6 Qxf4 59. Kb5 Kxg7 60. a5 Qc7 61. Kb4 Kf6 (61... Qc6 62. a6 Qxa6 63. Kc3 Kf6 64. Kc2 Kf5 65. Kd2 Ke4 66. Kc3 Qb5 67. Kc2 Qb4 68. Kd1 Kd3 69. Kc1 Qb8 70. Kd1 Qb1#) 62. a6 Ke5 (62... Qb6+ 63. Kc3 Ke5 64. Kd3 Qxa6+ 65. Kc3 Kd5 66. Kc2 Kd4 67. Kb3 Qa1 68. Kb4 Qb2+ 69. Ka5 Kc5 70. Ka6 Qb6#) 63. a7 Qxa7 64. Kc3 Qd4+ 65. Kb3 Kd5 66. Ka3 Kc4 67. Ka2 Qd2+ 68. Ka3 Qh2 69. Ka4 Qa2#) 50... Ke8 {[%emt 0:00:00]} 51. Kd5 {[%emt 0:00:00]} Kf7 {[%emt 0:00:00]} 52. Ke4 {[%emt 0:00:00]} (52. Kc6 g5 53. hxg5 fxg5 54. fxg5 h4 55. Kxb6 Kg6 (55... h3 56. a5 h2 57. f4 Kg6 58. Kc7 h1=Q 59. Kb6 Kf5 60. g6 Qg1+ 61. Kc6 Kxf4 62. g7 Ke5 63. Kb5 Qxg7 64. Kc6 Qg6+ 65. Kc5 Qc2+ 66. Kb5 Kd6 67. Kb4 Kd5 68. a6 Qb2+ 69. Ka5 Kc4 70. a7 Qb5#) 56. f3 h3 57. f4 h2 58. Kc5 h1=Q (58... h1=R 59. a5 $11) 59. a5 Qb7 60. Kd4 Qb4+ 61. Ke3 Kf5 (61... Qxa5 62. Ke4 Qf5+ 63. Kd4 Qxf4+ 64. Kc3 Kxg5 65. Kb3 Qd4 66. Kc2 Qb4 67. Kd3 Kf4 68. Ke2 Qd4 69. Kf1 Qb2 70. Kg1 Kg3 71. Kh1 Qh2#) 62. Kd3 Qxa5 (62... Qxf4 63. a6 Qd6+ 64. Ke3 Qxa6 65. Kd4 Kxg5 66. Kc3 Kf4 67. Kb4 Qc6 68. Kb3 Ke3 69. Kb4 Kd3 70. Ka5 Qb7 71. Ka4 Kc4 72. Ka5 Qb5#) 63. Kd4 Qd8+ (63... Kxf4 64. g6 Qb6+ 65. Kd5 Qxg6 66. Kc4 Ke4 67. Kc5 Qa6 68. Kb4 Kd4 69. Kb3 Kd3 70. Kb4 Qb6+ 71. Ka3 Kc3 72. Ka4 Qb4#) 64. Ke3 Qd5 65. g6 Kxg6 (65... Qe4+ 66. Kd2 Kxg6 67. Kc3 Kf5 68. Kb3 Qc6 69. Kb2 Ke4 70. Kb3 Kd3 71. Kb4 Qb6+ 72. Ka3 Kc3 73. f5 Qb3#) 66. Ke2 Kf5 (66... Qe4+ 67. Kd2 Kf5 68. Kc3 Kxf4 69. Kb2 Qb4+ 70. Kc1 Ke4 71. Kc2 Ke3 72. Kc1 Kd3 73. Kd1 Qd2#) 67. Kf2 Kxf4 68. Ke2 Qd7 69. Kf1 Qd2 70. Kg1 Kg3 71. Kh1 Qh2#) 52... Kf8 {[%emt 0:00:00]} (52... Ke6 53. f5+ gxf5+ 54. Kf4 Kd5 55. Kxf5 Kd4 56. Kg6 (56. Kxf6 Ke4 $18) 56... Kc4 57. Kxh5 (57. Kxf6 Kb4 58. Kg5 Kxa4 59. f4 b5 60. f5 b4 61. f6 b3)) 53. Kd5 {[%emt 0:00:00]} Kg7 {[%emt 0:00:00]} 54. Ke4 {[%emt 0:00:00]} Kh6 {[%emt 0:00:00]} 55. Kf3 {[%emt 0:00:00]} g5 {[%emt 0:00:00]} 56. fxg5+ {[%emt 0:00:00]} fxg5 {[%emt 0:00:00]} 57. hxg5+ {[%emt 0:00:00]} Kxg5 {[%emt 0:00:00]} 58. Kg3 {[%emt 0:00:00]} Kf5 {[%emt 0:00:00]} 59. Kh4 {[%emt 0:00:00]} Kg6 {[%emt 0:00:00]} 60. Kh3 {[%emt 0:00:00]} Kf5 {[%emt 0:00:00]} 61. Kh4 {[%emt 0:00:00]} Kg6 {[%emt 0:00:00]} 62. Kh3 {[%emt 0:00:00]} Kf5 {[%emt 0:00:00]} (62... Kg5 $5) 63. Kh4 {[%emt 0:00:00]} 1/2-1/2

[Event "45th FIDE Olympiad 2024"]
[Site "Budapest"]
[Date "2024.09.14"]
[Round "4.17"]
[White "Al-Hajiri, Bader"]
[Black "Oatlhotse, Providence"]
[Result "1-0"]
[ECO "B15"]
[WhiteElo "1947"]
[BlackElo "2239"]
[PlyCount "127"]
[EventDate "2024.09.05"]
[EventType "team-tourn"]
[EventCountry "HUN"]
[WhiteTeam "Kuwait"]
[BlackTeam "Botswana"]
[WhiteTeamCountry "KUW"]
[BlackTeamCountry "BOT"]
[TimeControl "40/5400+30:1800+30"]

1. e4 c6 2. d4 d5 3. Nc3 dxe4 4. Nxe4 Nf6 5. Nxf6+ exf6 6. c3 Bd6 7. Bd3 O-O 8. Qc2 Re8+ 9. Ne2 h5 10. O-O h4 11. h3 Nd7 12. Bd2 Nf8 13. Rae1 Be6 14. Kh1 Qd7 15. Ng1 c5 16. Be3 c4 17. Be2 Bc7 18. Bd2 b5 19. f4 Bf5 20. Qc1 Ng6 21. Bh5 Ne7 22. Bf3 Rad8 23. Be4 Bxe4 24. Rxe4 Nf5 25. Rxe8+ Rxe8 26. Re1 Ng3+ 27. Kh2 Ne4 28. Be3 g5 29. Ne2 Nf2 30. Bxf2 Rxe2 31. Rxe2 Bxf4+ 32. Qxf4 gxf4 33. Bxh4 Qd6 34. Kg1 b4 35. Be1 Kh7 36. Rf2 Qe7 37. Bd2 Qe4 38. Bxf4 Qb1+ 39. Kh2 Qxa2 40. Rd2 bxc3 41. bxc3 Qa5 42. d5 Qxc3 43. d6 Qa5 44. d7 Qd8 45. Kg1 c3 46. Rd5 c2 47. Kf1 a5 48. Bc1 a4 49. Ba3 Kg6 50. Ke2 f5 51. h4 Kf6 52. Kd2 Ke6 53. Rd6+ Ke5 54. Kxc2 Ke4 55. h5 Qb8 56. d8=Q Qb3+ 57. Kd2 Qe3+ 58. Kd1 Qb3+ 59. Ke2 Qe3+ 60. Kf1 Qf4+ 61. Kg1 Qe3+ 62. Kh1 Qxa3 63. Qe7+ Kf4 64. Rd4+ 1-0

[Event "45th FIDE Olympiad 2024"]
[Site "Budapest"]
[Date "2024.09.14"]
[Round "4.18"]
[White "Yakubboev, Nodirbek"]
[Black "Nguyen, Ngoc Truong Son"]
[Result "0-1"]
[ECO "D41"]
[WhiteElo "2666"]
[BlackElo "2633"]
[Annotator "RC"]
[PlyCount "106"]
[EventDate "2024.09.05"]
[EventType "team-tourn"]
[EventCountry "HUN"]
[SourceTitle "playchess.com"]
[Source "ChessBase"]
[SourceQuality "1"]
[WhiteTeam "Uzbekistan"]
[BlackTeam "Vietnam"]
[WhiteTeamCountry "UZB"]
[BlackTeamCountry "VIE"]
[TimeControl "40/5400+30:1800+30"]

1. d4 {[%emt 0:00:24]} Nf6 {[%emt 0:00:41]} 2. c4 {[%emt 0:00:31]} e6 {[%emt 0:00:19]} 3. Nf3 {[%emt 0:00:11]} d5 {[%emt 0:00:32]} 4. Nc3 {[%emt 0:00:14]} c5 {[%emt 0:00:26]} 5. cxd5 {[%emt 0:00:10]} Nxd5 {[%emt 0:01:18]} 6. e4 {[%emt 0:00:08]} Nxc3 {[%emt 0:00:04]} 7. bxc3 {[%emt 0:00:04]} cxd4 {[%emt 0:00:03]} 8. cxd4 {[%emt 0:00:02]} Bb4+ {[%emt 0:00:13]} 9. Bd2 {[%emt 0:00:01]} Bxd2+ {[%emt 0:00:11]} 10. Qxd2 {[%emt 0:00:01]} O-O {[%emt 0:00:13]} 11. Rd1 {[%emt 0:01:41]} Nd7 {[%emt 0:01:46]} 12. Bd3 {[%emt 0:03:03]} b6 {[%emt 0:00:49]} 13. O-O {[%emt 0:18:08]} Bb7 {[%emt 0:00:47]} 14. Qe3 {[%emt 0:00:05]} Re8 {[%emt 0:05:22]} 15. e5 {[%emt 0:06:09]} Bxf3 {[%emt 0:06:51]} 16. Qxf3 {[%emt 0:00:09]} Rc8 {[%emt 0:03:59]} 17. Bb5 {[%emt 0:05:28]} Re7 {[%emt 0:01:39]} 18. Qe4 {[%emt 0:00:41]} Nf8 {[%emt 0:01:20]} 19. f4 {[%emt 0:01:15]} g6 {[%emt 0:01:13]} 20. g4 {[%emt 0:32:39]} Rec7 {[%emt 0:01:45]} 21. Ba6 {[%emt 0:01:15]} Rb8 {[%emt 0:00:35]} 22. a4 {[%emt 0:02:23]} Qh4 {[%emt 0:01:08]} 23. Qf3 {[%emt 0:00:44]} Rd8 {[%emt 0:00:18]} 24. Rd2 {[%emt 0:01:53]} Qe7 {[%emt 0:01:13]} 25. Rb1 {[%emt 0:03:45]} Qd7 {[%emt 0:06:16]} 26. Ra1 {[%emt 0:03:27]} Rc2 {[%emt 0:04:54]} 27. Bb5 {[%emt 0:01:49]} Qc7 {[%emt 0:00:35]} 28. Rad1 {[%emt 0:01:06]} Rc3 {[%emt 0:04:43]} 29. Qe4 {[%emt 0:00:08]} Qe7 {[%emt 0:01:07]} 30. Rd3 {[%emt 0:05:08]} Qh4 {[%emt 0:08:19]} 31. Qf3 {[%emt 0:04:58]} Rxd3 {[%emt 0:04:57]} 32. Rxd3 {[%emt 0:00:01]} Qe1+ {[%emt 0:02:32]} 33. Kg2 {[%emt 0:01:53]} Rc8 {[%emt 0:00:37]} 34. Qd1 {[%emt 0:02:12]} Qe4+ {[%emt 0:07:24]} 35. Kg3 {[%emt 0:03:28]} h5 {[%emt 0:03:11]} 36. Qf3 {[%emt 0:01:42]} Qe1+ {[%emt 0:00:22]} 37. Qf2 {[%emt 0:00:01]} h4+ {[%emt 0:05:07]} 38. Kg2 {[%emt 0:00:02]} Qc1 {[%emt 0:01:50]} 39. Re3 {[%emt 0:00:52]} Rc2 {[%emt 0:01:50]} 40. Re2 {[%emt 0:02:02]} Rc3 {[%emt 0:02:30]} 41. Re1 {[%emt 0:30:24]} h3+ {[%emt 0:30:47]} 42. Kg1 {[%emt 0:00:00]} Qa3 {[%emt 0:00:00]} 43. Qd2 {[%emt 0:00:00]} Qb3 {[%emt 0:00:00]} 44. Bf1 {[%emt 0:00:00]} Rf3 {[%emt 0:00:00]} 45. f5 {[%emt 0:00:00]} gxf5 {[%emt 0:00:00]} 46. gxf5 {[%emt 0:00:00]} Rxf5 {[%emt 0:00:00]} 47. Bd3 {[%emt 0:00:00]} Rf3 {[%emt 0:00:00]} 48. Qg5+ {[%emt 0:00:00]} Ng6 {[%emt 0:00:00]} 49. Bxg6 {[%emt 0:00:00]} fxg6 {[%emt 0:00:00]} 50. Qxg6+ {[%emt 0:00:00]} Kf8 {[%emt 0:00:00]} 51. Qe4 {[%emt 0:00:38]} Qd3 {[%emt 0:00:00]} 52. Qa8+ {[%emt 0:00:49]} Kg7 {[%emt 0:00:00]} 53. Qxa7+ {[%emt 0:00:09]} Kh6 {[%emt 0:00:00]} 0-1

[Event "45th FIDE Olympiad 2024"]
[Site "Budapest"]
[Date "2024.09.14"]
[Round "4.18"]
[White "Notha, Moakofi"]
[Black "Al Ibrahim, Abdulrahman"]
[Result "1-0"]
[ECO "C84"]
[WhiteElo "1996"]
[BlackElo "1932"]
[PlyCount "179"]
[EventDate "2024.09.05"]
[EventType "team-tourn"]
[EventCountry "HUN"]
[WhiteTeam "Botswana"]
[BlackTeam "Kuwait"]
[WhiteTeamCountry "BOT"]
[BlackTeamCountry "KUW"]
[TimeControl "40/5400+30:1800+30"]

1. e4 e5 2. Nf3 Nc6 3. Bb5 a6 4. Ba4 Nf6 5. d4 exd4 6. e5 Ne4 7. O-O Be7 8. Nxd4 Nxd4 9. Qxd4 Nc5 10. Nc3 O-O 11. Be3 Nxa4 12. Qxa4 d6 13. Rad1 Bd7 14. Qb3 dxe5 15. Qxb7 Qc8 16. Qxc8 Bxc8 17. Nd5 Bd8 18. c4 Rb8 19. b3 f5 20. Ba7 Ra8 21. Bc5 Re8 22. Rd2 Be6 23. Rfd1 a5 24. Re2 c6 25. Nc3 Bf6 26. Na4 Red8 27. Red2 Rxd2 28. Rxd2 Rd8 29. Rxd8+ Bxd8 30. f3 Kf7 31. Kf2 g5 32. Ke2 h5 33. h3 Kf6 34. Bd6 Bc8 35. Nc5 Bb6 36. Nd3 Bd4 37. Bc5 Bc3 38. Nf2 Ba6 39. g4 hxg4 40. hxg4 a4 41. gxf5 Kxf5 42. Ne4 Ba5 43. Nd6+ Kf4 44. Be3+ Kg3 45. Ne4+ Kh4 46. Bxg5+ Kh5 47. Bf6 axb3 48. axb3 Bc7 49. Be7 Bb6 50. Bc5 Bd8 51. Bd6 Kg6 52. Bxe5 Kf5 53. Bd6 Bc8 54. Ke3 Ke6 55. f4 Bd7 56. Be5 Be8 57. Nc5+ Kf5 58. Nb7 Be7 59. Kd4 Ke6 60. c5 Bg6 61. Na5 Kd7 62. b4 Bh4 63. Kc3 Be1+ 64. Kb3 Bf7+ 65. Ka4 Bg6 66. Nb7 Bd3 67. Ka5 Bh4 68. Nd6 Be1 69. f5 Bh4 70. f6 Ke6 71. Bc3 Bg3 72. Ne8 Kf7 73. Nd6+ Ke6 74. Nb7 Bc7+ 75. Ka4 Bg6 76. Na5 Kd5 77. Be1 Be5 78. Bh4 Bf7 79. Nb7 Bg6 80. Nd8 Bf4 81. f7 Bh6 82. Be7 Bc2+ 83. Ka5 Bg6 84. f8=Q Bxf8 85. Bxf8 Bd3 86. Kb6 Bb5 87. Bd6 Ba4 88. Bh2 Bb5 89. Nf7 Kc4 90. Nd6+ 1-0

[Event "45th FIDE Olympiad 2024"]
[Site "Budapest"]
[Date "2024.09.14"]
[Round "4.19"]
[White "Le, Tuan Minh"]
[Black "Sindarov, Javokhir"]
[Result "1-0"]
[ECO "E04"]
[WhiteElo "2564"]
[BlackElo "2677"]
[Annotator "TA"]
[PlyCount "65"]
[EventDate "2024.09.05"]
[EventType "team-tourn"]
[EventCountry "HUN"]
[SourceTitle "playchess.com"]
[Source "ChessBase"]
[SourceQuality "1"]
[WhiteTeam "Vietnam"]
[BlackTeam "Uzbekistan"]
[WhiteTeamCountry "VIE"]
[BlackTeamCountry "UZB"]
[TimeControl "40/5400+30:1800+30"]

{[%evp 23,65,18,20,24,16,30,25,19,45,26,34,0,0,-8,-10,-20,-6,-7,-8,-12,-3,-4,0,-1,32,-12,-6,-10,0,0,0,0,0,-9,18,20,45,33,176,187,321,316,572,577]} 1. d4 {[%emt 0:00:28]} e6 {[%emt 0:00:20]} 2. Nf3 {[%emt 0:01:17]} c5 {[%emt 0:01:23]} 3. g3 {[%emt 0:04:12]} d5 {[%emt 0:16:13]} 4. Bg2 {[%emt 0:00:59]} Nc6 {[%emt 0:00:05]} 5. O-O {[%emt 0:00:11]} Nf6 {[%emt 0:00:03]} 6. c4 {[%emt 0:01:42]} dxc4 {[%emt 0:00:06]} 7. dxc5 {[%emt 0:02:38]} Qxd1 {[%emt 0:01:04]} 8. Rxd1 {[%emt 0:00:11]} Bxc5 {[%emt 0:00:08]} 9. Nbd2 {[%emt 0:00:21]} c3 {[%emt 0:01:20]} 10. bxc3 {[%emt 0:00:08]} O-O {[%emt 0:07:53]} 11. Nb3 {[%emt 0:04:04]} Be7 {[%emt 0:01:19]} 12. c4 {[%emt 0:09:38]} Bd7 {[%emt 0:11:42]} 13. Bb2 {[%emt 0:15:24]} Rfd8 {[%emt 0:00:33]} 14. Nfd4 {[%emt 0:02:41]} Rac8 {[%emt 0:05:34]} 15. Nb5 {[%emt 0:05:36][%cal Bd4b5,Bb5c3,Bc3d5][%mdl 32] White has an edge.} e5 {[%emt 0:29:03]} 16. Rac1 {[%emt 0:18:27]} Ne8 {[%emt 0:09:52]} 17. h4 {[%emt 0:09:18]} f6 {[%emt 0:06:20]} 18. Nc3 {[%emt 0:01:09]} Bg4 {[%emt 0:01:31]} 19. Kf1 {[%emt 0:08:14]} Rxd1+ {[%emt 0:01:30]} 20. Rxd1 {[%emt 0:01:35]} Be6 {[%emt 0:00:41]} 21. Nd5 {[%emt 0:01:42]} Bf8 {[%emt 0:00:13]} 22. Rc1 {[%emt 0:01:31]} Kf7 {[%emt 0:00:55]} 23. f4 {[%emt 0:01:27]} b6 {[%emt 0:02:33]} 24. Ne3 {[%emt 0:01:15]} (24. c5 $5 b5 25. fxe5 $11) 24... exf4 {[%emt 0:00:37]} 25. gxf4 {[%emt 0:00:04]} Ne7 {[%emt 0:00:16]} 26. Nd4 {[%emt 0:00:49]} Bd7 {[%emt 0:00:36]} 27. Ba3 {[%emt 0:00:59]} Nc7 {[%emt 0:00:24]} 28. Rd1 {[%emt 0:04:06]} Ba4 {[%emt 0:00:32]} 29. Rd3 {[%emt 0:00:08]} g6 {[%emt 0:01:11]} 30. Bd6 {[%emt 0:00:39]} Ne8 {[%emt 0:00:59] [#]} ({Black should try} 30... Ne6 $14) 31. Bxe7 $1 $18 {[%emt 0:00:33]} Bxe7 {[%emt 0:00:20]} (31... Kxe7 $142 32. Ra3 Bd7 33. Nd5+ (33. Rxa7 Nc7 $18) 33... Kd8 34. Rxa7 Bc5) 32. Bd5+ {[%emt 0:00:05]} Kg7 $2 {[%emt 0:00:20] [#]} (32... Kf8 33. Ne6+ Kg8 34. Nc5+ Kh8) 33. Nef5+ $1 {[%emt 0:00:22][%mdl 512] Weighted Error Value: White=0.06 (flawless) /Black=0.37.  Mistake:       	---       	Black=3      Inaccurate:     	White=2     	Black=3      OK:         	White=7     	Black=7      Best:        	White=1     	---        Strong:       	White=1     	---        Brilliant:      	White=1     	---} 1-0

[Event "45th FIDE Olympiad 2024"]
[Site "Budapest"]
[Date "2024.09.14"]
[Round "4.19"]
[White "Alsaqer, Meshal"]
[Black "Monnaatsheko, Keletshabile"]
[Result "0-1"]
[ECO "E09"]
[WhiteElo "1815"]
[BlackElo "2064"]
[PlyCount "87"]
[EventDate "2024.09.05"]
[EventType "team-tourn"]
[EventCountry "HUN"]
[WhiteTeam "Kuwait"]
[BlackTeam "Botswana"]
[WhiteTeamCountry "KUW"]
[BlackTeamCountry "BOT"]
[TimeControl "40/5400+30:1800+30"]

1. d4 d5 2. Nf3 Nf6 3. c4 c6 4. Qc2 e6 5. Nbd2 Nbd7 6. g3 Be7 7. Bg2 b6 8. O-O Bb7 9. e4 dxe4 10. Nxe4 O-O 11. Rd1 Qc8 12. Ne5 c5 13. Nxd7 Nxd7 14. b3 cxd4 15. Rxd4 f5 16. Nd6 Bxd6 17. Bxb7 Qxb7 18. Rxd6 Ne5 19. f4 Nf3+ 20. Kf1 Rad8 21. Rxd8 Rxd8 22. Be3 Nd2+ 23. Kg1 Nf3+ 24. Kf1 Nd4 25. Bxd4 Rxd4 26. Qg2 Qxg2+ 27. Kxg2 Rd2+ 28. Kf3 Rxh2 29. a3 Rb2 30. b4 Rc2 31. Rd1 Rc3+ 32. Kf2 Rxa3 33. Rd7 Ra4 34. Ke3 Rxb4 35. Kd4 b5 36. Ke5 bxc4 37. Kxe6 Rb6+ 38. Ke7 h6 39. Rxa7 Rb3 40. Ke6 Rxg3 41. Rc7 c3 42. Kxf5 h5 43. Ke4 h4 44. Kd4 {0-} 0-1

[Event "45th FIDE Olympiad 2024"]
[Site "Budapest"]
[Date "2024.09.14"]
[Round "4.20"]
[White "Vakhidov, Jakhongir"]
[Black "Tran, Tuan Minh"]
[Result "1/2-1/2"]
[ECO "D37"]
[WhiteElo "2571"]
[BlackElo "2434"]
[Annotator "TA"]
[PlyCount "125"]
[EventDate "2024.09.05"]
[EventType "team-tourn"]
[EventCountry "HUN"]
[SourceTitle "playchess.com"]
[Source "ChessBase"]
[SourceQuality "1"]
[WhiteTeam "Uzbekistan"]
[BlackTeam "Vietnam"]
[WhiteTeamCountry "UZB"]
[BlackTeamCountry "VIE"]
[TimeControl "40/5400+30:1800+30"]

{[%evp 35,125,-11,-8,-8,-8,-8,-8,-5,-13,-8,-3,-28,-19,-19,-11,-55,-36,-26,-23,-22,-16,-17,-13,-14,-21,-16,-12,-58,-11,-8,0,0,0,0,0,0,0,0,0,0,0,0,0,0,0,0,0,0,0,0,0,0,0,0,0,0,9,16,10,9,8,10,9,13,13,0,0,0,17,0,43,41,34,39,34,34,39,36,36,0,221,190,514,0,0,2,0,0,0,0,0,0]} 1. d4 {[%emt 0:00:16]} Nf6 {[%emt 0:00:49]} 2. c4 {[%emt 0:00:23]} e6 {[%emt 0:00:31]} 3. Nf3 {[%emt 0:00:19]} d5 {[%emt 0:06:10]} 4. Nc3 {[%emt 0:00:29]} Be7 {[%emt 0:00:04]} 5. Bf4 {[%emt 0:04:55]} O-O {[%emt 0:06:04]} 6. e3 {[%emt 0:00:14]} a6 {[%emt 0:03:03]} 7. Rc1 {[%emt 0:06:13]} b6 {[%emt 0:11:35] D37: Queen's Gambit Declined: 5 Bf4.} 8. Bd3 {[%emt 0:11:22]} dxc4 {[%emt 0:02:30]} 9. Bxc4 {[%emt 0:03:36]} Bb7 {[%emt 0:00:13]} 10. O-O {[%emt 0:08:22]} b5 {[%emt 0:05:44]} 11. Bb3 {[%emt 0:01:06]} c5 {[%emt 0:00:35]} 12. dxc5 {[%emt 0:17:29]} Nbd7 {[%emt 0:00:12]} 13. Bd6 $146 {[%emt 0:16:16]} ({Predecessor:} 13. c6 Bxc6 14. Ne2 Nc5 15. Ned4 Bb7 16. Bc2 Rc8 17. Qe2 Qb6 18. Rfd1 Rfd8 19. Bb1 Bd5 20. h3 Qb7 {½-½ Holzke,F (2521)-Babula,V (2585) Bundesliga 1213 2012 (12.5)}) 13... Nxc5 {[%emt 0:00:39]} 14. Bxc5 {[%emt 0:00:43]} Bxc5 {[%emt 0:01:12]} 15. Qxd8 {[%emt 0:00:51]} Rfxd8 {[%emt 0:07:52]} 16. Nxb5 {[%emt 0:05:14]} Bxe3 {[%emt 0:00:06]} 17. fxe3 {[%emt 0:00:04]} axb5 {[%emt 0:00:04]} 18. Nd4 {[%emt 0:00:15]} b4 {[%emt 0:07:43]} 19. Rc7 {[%emt 0:02:20]} Be4 {[%emt 0:02:55]} 20. h3 {[%emt 0:04:46]} h5 {[%emt 0:00:42]} 21. Rf2 {[%emt 0:05:20]} Rd6 {[%emt 0:08:59]} 22. Rc4 {[%emt 0:06:44]} Rb8 {[%emt 0:02:29]} 23. Nc2 {[%emt 0:00:59]} Rd1+ {[%emt 0:06:26]} 24. Kh2 {[%emt 0:00:01]} Bd5 {[%emt 0:00:06]} 25. Rd4 {[%emt 0:00:19]} Rxd4 {[%emt 0:03:12]} 26. Nxd4 {[%emt 0:00:04]} Ra8 {[%emt 0:02:03]} 27. Rc2 {[%emt 0:02:27]} Bxb3 {[%emt 0:00:55]} 28. axb3 {[%emt 0:00:01]} Ra1 {[%emt 0:00:48]} 29. Nf3 {[%emt 0:00:43]} Nd5 {[%emt 0:06:03]} 30. e4 {[%emt 0:00:22]} Ne3 {[%emt 0:00:36]} 31. Rc8+ {[%emt 0:00:14]} Kh7 {[%emt 0:00:03]} 32. Kg3 {[%emt 0:00:18]} Rb1 {[%emt 0:00:42]} 33. Kf2 {[%emt 0:00:48]} Nd1+ {[%emt 0:01:32]} (33... Rxb2+ 34. Kxe3 Rxb3+ 35. Kf2 $18) 34. Ke2 {[%emt 0:00:06]} Nxb2 {[%emt 0:00:05]} 35. Rd8 {[%emt 0:00:19]} f6 {[%emt 0:02:27]} 36. Rd4 {[%emt 0:01:29]} e5 {[%emt 0:03:25]} 37. Rxb4 {[%emt 0:00:51]} Rd1 {[%emt 0:00:04]} 38. Rb5 {[%emt 0:01:04]} Rd3 {[%emt 0:06:48]} 39. Rb7 {[%emt 0:00:56]} Rd8 {[%emt 0:00:37]} 40. Rc7 {[%emt 0:01:07]} Nd3 {[%emt 0:01:23]} 41. g3 {[%emt 0:30:05]} Nb4 {[%emt 0:30:29]} 42. Rc4 {[%emt 0:00:00]} Na6 {[%emt 0:00:00]} 43. Rc6 {[%emt 0:00:00]} Ra8 {[%emt 0:00:00]} 44. Kd2 {[%emt 0:00:00]} Nb4 {[%emt 0:00:00]} 45. Rc4 {[%emt 0:00:00]} Rd8+ {[%emt 0:00:00]} 46. Kc3 {[%emt 0:00:00]} Nd3 $1 {[%emt 0:00:00]} 47. b4 {[%emt 0:00:00]} Nf2 {[%emt 0:00:00]} 48. b5 {[%emt 0:00:00]} Rb8 {[%emt 0:00:00]} 49. Kb4 {[%emt 0:00:00]} Nxh3 {[%emt 0:00:00]} 50. Ka5 {[%emt 0:04:00]} Ra8+ {[%emt 0:02:46]} 51. Kb4 {[%emt 0:00:02]} Rb8 {[%emt 0:00:13]} 52. Kc5 {[%emt 0:00:07]} g5 {[%emt 0:00:49]} 53. b6 {[%emt 0:01:17]} h4 {[%emt 0:00:06]} 54. gxh4 {[%emt 0:00:52]} g4 {[%emt 0:00:15]} 55. Ne1 {[%emt 0:00:12]} Nf4 {[%emt 0:01:02]} 56. Rb4 {[%emt 0:01:13]} g3 {[%emt 0:00:45]} 57. Rb2 {[%emt 0:00:56]} ({Stronger than} 57. b7 g2 58. Nxg2 Nd3+ 59. Kb6 Nxb4 $17) 57... Kg6 $2 {[%emt 0:04:27]} (57... g2 $1 $11 58. Rxg2 (58. Nxg2 Nd3+ 59. Kc6 Nxb2 $17) 58... Rc8+ 59. Kb5 Nxg2 60. Nxg2 Rc3) 58. Kd6 $18 {[%emt 0:00:20]} Kh5 $2 {[%emt 0:00:27]} (58... Rd8+ {is tougher.} 59. Ke7 Rg8) 59. Ke7 $2 {[%emt 0:00:24]} (59. Kc7 $18 Rf8 60. b7) 59... g2 $11 {[%emt 0:00:38]} 60. Nxg2 {[%emt 0:00:54]} Nxg2 {[%emt 0:00:05]} 61. Rxg2 {[%emt 0:00:39]} Rxb6 {[%emt 0:00:06]} 62. Rh2 {[%emt 0:00:15]} Rb4 {[%emt 0:00:19]} 63. Kxf6 {[%emt 0:00:25]} 1/2-1/2